bitfinex/quotes_SOLUSD_20240625
["timestamp","ask_amount","ask_price","bid_price","bid_amount"]
[1719281459458,100.0,132.69,132.65,35.3744]
[1719281461068,200.0,132.71,132.66,6.7838]
[1719281461365,116.5164,132.73,132.67,16.9589]
[1719281461548,9.15206487,132.75,132.68,28.59]
[1719281461747,100.0,132.77,132.72,6.7809]
[1719281462367,100.0,132.77,132.73,6.7806]
[1719281462762,100.0,132.77,132.71,45.5436]
[1719281462965,100.0,132.74,132.71,45.5436]
[1719281463359,100.0,132.74,132.71,52.3251]
[1719281464161,100.0,132.74,132.72,6.7809]
[1719281464761,100.0,132.74,132.71,23.7352]
[1719281466861,100.0,132.72,132.69,6.7826]
[1719281467461,100.0,132.72,132.68,16.9575]
[1719281467678,100.0,132.72,132.68,23.7405]
[1719281467864,100.0,132.7,132.68,16.9575]
[1719281468181,100.0,132.7,132.66,28.59]
[1719281468182,100.0,132.68,132.66,28.59]
[1719281468355,100.0,132.66,132.62,32.7064]
[1719281468562,100.0,132.66,132.62,23.751]
[1719281468877,100.0,132.64,132.62,23.751]
[1719281469048,100.0,132.64,132.63,6.7857]
[1719281470370,100.0,132.62,132.6,6.7868]
[1719281470758,100.0,132.62,132.59,32.7106]
[1719281471558,100.0,132.62,132.59,16.9691]
[1719281472277,100.0,132.62,132.6,6.7872]
[1719281473181,100.0,132.62,132.59,23.7568]
[1719281473558,100.0,132.6,132.58,28.59]
[1719281473958,100.0,132.6,132.57,6.7886]
[1719281474184,100.0,132.6,132.58,6.7883]
[1719281475558,100.0,132.6,132.57,6.7887]
[1719281476575,100.0,132.6,132.58,6.7882]
[1719281477183,100.0,132.62,132.59,6.7877]
[1719281479483,100.0,132.62,132.58,23.7578]
[1719281479878,100.0,132.62,132.59,6.7878]
[1719281481463,100.0,132.62,132.58,23.7579]
[1719281481678,100.0,132.62,132.59,6.7877]
[1719281482099,100.0,132.62,132.58,23.758]
[1719281482886,100.0,132.62,132.59,6.7878]
[1719281483062,100.0,132.62,132.6,6.787]
[1719281483786,100.0,132.62,132.59,6.7877]
[1719281484587,100.0,132.6,132.59,6.7877]
[1719281484775,100.0,132.6,132.58,23.7579]
[1719281484978,100.0,132.6,132.58,16.9697]
[1719281485861,100.0,132.6,132.58,23.7579]
[1719281486284,100.0,132.6,132.59,6.7878]
[1719281487084,100.0,132.63,132.59,6.7878]
[1719281487290,100.0,132.63,132.59,6.7877]
[1719281487488,100.0,132.63,132.58,23.7579]
[1719281487785,100.0,132.61,132.58,23.7579]
[1719281491887,100.0,132.61,132.59,6.7878]
[1719281493089,100.0,132.61,132.58,23.7579]
[1719281493294,100.0,132.61,132.58,16.9697]
[1719281493469,100.0,132.58,132.56,6.7889]
[1719281493883,100.0,132.56,132.55,16.9741]
[1719281494086,100.0,132.61,132.57,16.9709]
[1719281494269,115.3935,132.62,132.57,16.9709]
[1719281494270,115.3935,132.62,132.59,6.7876]
[1719281494465,100.0,132.64,132.6,6.7869]
[1719281495493,100.0,132.64,132.59,23.7566]
[1719281495674,100.0,132.61,132.58,6.7882]
[1719281495877,100.0,132.61,132.57,35.3786]
[1719281496075,100.0,132.61,132.57,6.7886]
[1719281496290,100.0,132.61,132.58,6.7882]
[1719281498393,100.0,132.61,132.57,6.7887]
[1719281499303,100.0,132.59,132.56,23.762]
[1719281500372,100.0,132.59,132.57,6.7888]
[1719281504906,100.0,132.59,132.54,28.59]
[1719281505111,100.0,132.59,132.55,6.7897]
[1719281505313,100.0,132.57,132.55,6.7897]
[1719281506498,100.0,132.57,132.54,35.3802]
[1719281506698,100.0,132.57,132.54,6.7902]
[1719281506997,100.0,132.57,132.55,6.7897]
[1719281508417,100.0,132.57,132.54,6.7902]
[1719281510485,100.0,132.57,132.55,6.7898]
[1719281511610,100.0,132.57,132.54,6.7902]
[1719281511799,100.0,132.57,132.53,16.9763]
[1719281511800,100.0,132.57,132.55,6.7898]
[1719281511994,100.0,132.57,132.54,6.7902]
[1719281513901,100.0,132.57,132.55,6.7898]
[1719281516295,100.0,132.57,132.56,6.7893]
[1719281516990,100.0,132.57,132.55,16.9739]
[1719281518091,100.0,132.57,132.55,23.7636]
[1719281518603,100.0,132.57,132.56,9.58]
[1719281520591,100.0,132.59,132.56,9.58]
[1719281520790,100.0,132.61,132.58,9.58]
[1719281521815,100.0,132.61,132.6,9.58]
[1719281522808,100.0,132.58,132.53,16.9764]
[1719281523109,100.0,132.56,132.53,23.7672]
[1719281524501,100.0,132.54,132.5,23.3208]
[1719281524694,100.0,132.54,132.51,6.7915]
[1719281524999,100.0,132.52,132.5,16.981]
[1719281525301,100.0,132.52,132.47,35.0022]
[1719281525302,100.0,132.52,132.47,23.7778]
[1719281525505,100.0,132.52,132.48,6.7931]
[1719281525698,100.0,132.52,132.49,6.7928]
[1719281525895,100.0,132.52,132.5,6.7924]
[1719281526111,100.0,132.5,132.46,16.9856]
[1719281526316,100.0,132.5,132.47,6.7935]
[1719281526697,100.0,132.5,132.46,23.78]
[1719281527001,100.0,132.5,132.48,6.7934]
[1719281527210,100.0,132.5,132.46,23.7796]
[1719281527396,100.0,132.5,132.47,6.7935]
[1719281527602,100.0,132.5,132.46,16.9856]
[1719281527603,100.0,132.5,132.48,6.7933]
[1719281528203,100.0,132.5,132.47,6.7939]
[1719281529019,100.0,132.52,132.48,6.7933]
[1719281529198,100.0,132.52,132.5,6.7924]
[1719281529398,100.0,132.52,132.48,16.9829]
[1719281529909,100.0,132.52,132.48,23.7759]
[1719281530106,100.0,132.5,132.48,23.7759]
[1719281530316,100.0,132.5,132.47,6.7938]
[1719281530508,100.0,132.5,132.46,6.7943]
[1719281531196,100.0,132.48,132.46,6.7943]
[1719281533418,100.0,132.44,132.43,6.7956]
[1719281536317,100.0,132.44,132.42,16.9911]
[1719281536908,100.0,132.48,132.46,6.7943]
[1719281537114,100.0,132.48,132.44,16.9883]
[1719281537495,100.0,132.46,132.44,16.9883]
[1719281538517,100.0,132.46,132.44,23.7836]
[1719281539221,100.0,132.46,132.44,16.9883]
[1719281539418,100.0,132.5,132.47,6.7939]
[1719281539825,100.0,132.5,132.46,23.7797]
[1719281540026,100.0,132.5,132.47,6.7938]
[1719281540408,100.0,132.46,132.43,16.9894]
[1719281540610,100.0,132.46,132.45,6.795]
[1719281541827,100.0,132.5,132.45,16.9867]
[1719281542220,100.0,132.5,132.47,6.7939]
[1719281542622,100.0,132.48,132.47,6.7939]
[1719281543724,100.0,132.48,132.45,16.9867]
[1719281543923,100.0,132.45,132.42,23.7876]
[1719281544132,100.0,132.45,132.43,6.7958]
[1719281544333,100.0,132.45,132.42,23.7876]
[1719281544905,100.0,132.45,132.43,6.7959]
[1719281545315,100.0,132.45,132.42,23.7876]
[1719281545804,100.0,132.43,132.42,16.9912]
[1719281546215,100.0,132.45,132.43,6.7956]
[1719281546425,100.0,132.47,132.44,16.9885]
[1719281546626,100.0,132.49,132.42,28.71]
[1719281547125,100.0,132.49,132.46,16.9857]
[1719281547338,100.0,132.49,132.47,6.7939]
[1719281547536,100.0,132.49,132.46,23.78]
[1719281547846,100.0,132.49,132.46,16.9857]
[1719281548467,100.0,132.55,132.48,28.71]
[1719281548744,100.0,132.56,132.52,23.7687]
[1719281548942,100.0,132.51,132.48,45.6934]
[1719281549330,100.0,132.51,132.48,23.7764]
[1719281549955,100.0,132.51,132.49,6.7926]
[1719281550450,100.0,132.49,132.48,16.9834]
[1719281551251,100.0,132.49,132.48,23.7766]
[1719281551431,100.0,132.51,132.5,6.7924]
[1719281551639,100.0,132.51,132.48,16.9834]
[1719281551640,100.0,132.51,132.49,6.7928]
[1719281552041,100.0,132.51,132.5,6.7924]
[1719281552245,100.0,132.51,132.49,6.7928]
[1719281553826,100.0,132.49,132.48,23.7767]
[1719281555240,100.0,132.49,132.48,16.9834]
[1719281555949,100.0,132.47,132.46,6.7943]
[1719281556759,100.0,132.47,132.45,16.9867]
[1719281557679,100.0,132.47,132.46,6.7945]
[1719281559070,100.0,132.47,132.45,23.7816]
[1719281560351,100.0,132.47,132.45,16.9867]
[1719281560646,100.0,132.47,132.42,23.7872]
[1719281560647,100.0,132.43,132.42,23.7872]
[1719281560961,100.0,132.43,132.42,23.7873]
[1719281562558,100.0,132.45,132.42,16.9908]
[1719281562954,100.0,132.45,132.43,6.7959]
[1719281563164,100.0,132.45,132.42,16.9908]
[1719281563957,100.0,132.47,132.44,6.7955]
[1719281564165,100.0,132.47,132.42,16.9908]
[1719281564556,100.0,132.44,132.43,6.7959]
[1719281564755,100.0,132.41,132.39,16.9945]
[1719281565081,22.2051,132.44,132.34,34.0029]
[1719281565082,100.0,132.39,132.38,6.7985]
[1719281565376,100.0,132.39,132.38,6.7986]
[1719281571676,22.2051,132.44,132.36,16.9983]
[1719281571677,100.0,132.37,132.36,16.9983]
[1719281571979,100.0,132.37,132.36,23.7979]
[1719281573094,100.0,132.37,132.33,45.712]
[1719281573271,100.0,132.37,132.35,6.7997]
[1719281573977,100.0,132.37,132.36,6.7996]
[1719281576686,100.0,132.37,132.35,23.7999]
[1719281576889,100.0,132.37,132.35,16.9999]
[1719281578102,100.0,132.35,132.32,17.0034]
[1719281578809,100.0,132.35,132.33,6.8011]
[1719281579082,100.0,132.33,132.32,17.0034]
[1719281580282,100.0,132.33,132.3,6.8025]
[1719281580786,100.0,132.33,132.31,6.8021]
[1719281581294,100.0,132.33,132.3,6.8025]
[1719281581482,100.0,132.33,132.31,6.8021]
[1719281581866,100.0,132.33,132.32,6.8016]
[1719281582179,100.0,132.33,132.29,17.0076]
[1719281582379,100.0,132.33,132.31,6.8018]
[1719281582571,100.0,132.33,132.29,17.0076]
[1719281582976,100.0,132.33,132.3,6.8026]
[1719281583283,100.0,132.33,132.29,23.8107]
[1719281584287,100.0,132.33,132.29,17.0076]
[1719281584495,100.0,132.33,132.32,6.8016]
[1719281584790,100.0,132.35,132.31,6.8021]
[1719281584998,100.0,132.33,132.31,6.8021]
[1719281585288,100.0,132.33,132.32,6.8016]
[1719281585479,100.0,132.35,132.32,6.8016]
[1719281585871,100.0,132.37,132.31,17.0047]
[1719281586079,16.2107,132.38,132.31,17.0047]
[1719281586080,100.0,132.32,132.31,17.0047]
[1719281586471,100.0,132.32,132.29,6.803]
[1719281586686,100.0,132.32,132.3,6.8026]
[1719281587666,100.0,132.32,132.28,23.8124]
[1719281587885,100.0,132.32,132.29,6.8032]
[1719281588680,100.0,132.32,132.3,6.8026]
[1719281589376,100.0,132.34,132.3,6.8026]
[1719281589583,100.0,132.34,132.31,6.8022]
[1719281589783,100.0,132.34,132.3,17.0062]
[1719281590388,100.0,132.32,132.3,23.8088]
[1719281592082,100.0,132.32,132.3,17.0062]
[1719281592795,7.82528553,132.37,132.28,6.8036]
[1719281592796,100.0,132.3,132.28,6.8036]
[1719281593115,100.0,132.3,132.27,17.0103]
[1719281593401,100.0,132.3,132.29,6.8032]
[1719281595781,100.0,132.3,132.27,23.8144]
[1719281595991,100.0,132.28,132.24,17.0136]
[1719281596188,100.0,132.28,132.25,6.8051]
[1719281596390,100.0,132.26,132.24,23.8193]
[1719281596996,100.0,132.26,132.25,6.8052]
[1719281597192,100.0,132.28,132.25,6.8052]
[1719281599006,100.0,132.26,132.24,23.8193]
[1719281599410,100.0,132.26,132.2,34.0372]
[1719281599411,100.0,132.26,132.23,6.8061]
[1719281599993,100.0,132.26,132.24,6.8057]
[1719281601108,100.0,132.26,132.25,6.8052]
[1719281601712,100.0,132.26,132.24,6.8057]
[1719281602618,100.0,132.24,132.23,17.0153]
[1719281603918,100.0,132.24,132.22,6.8067]
[1719281604695,16.2098,132.26,132.2,17.0187]
[1719281604696,100.0,132.22,132.2,17.0187]
[1719281605412,100.0,132.22,132.21,6.8073]
[1719281605929,100.0,132.27,132.22,17.0165]
[1719281606102,6.6453,132.28,132.22,17.0165]
[1719281606103,100.0,132.24,132.22,17.0165]
[1719281606294,100.0,132.22,132.2,6.8077]
[1719281606802,100.0,132.22,132.16,34.0493]
[1719281607118,100.0,132.22,132.19,23.8288]
[1719281607908,100.0,132.2,132.19,17.0206]
[1719281608415,100.0,132.2,132.19,23.8289]
[1719281609237,100.0,132.2,132.16,17.0241]
[1719281609408,100.0,132.2,132.17,6.8089]
[1719281609602,100.0,132.2,132.18,6.8088]
[1719281610201,100.0,132.2,132.17,6.8093]
[1719281610398,100.0,132.18,132.17,6.8093]
[1719281610619,100.0,132.21,132.19,6.8081]
[1719281610808,100.0,132.19,132.18,23.8303]
[1719281611008,100.0,132.19,132.18,17.0216]
[1719281611309,100.0,132.19,132.15,17.0258]
[1719281611515,100.0,132.22,132.15,17.0258]
[1719281611516,100.0,132.17,132.15,17.0258]
[1719281611914,100.0,132.17,132.14,6.8104]
[1719281612721,100.0,132.15,132.14,6.8104]
[1719281613509,100.0,132.2,132.18,6.8084]
[1719281613708,100.0,132.2,132.12,34.0578]
[1719281614514,100.0,132.2,132.18,6.8087]
[1719281614906,100.0,132.2,132.17,17.0222]
[1719281614907,100.0,132.22,132.19,6.8083]
[1719281615133,100.0,132.22,132.17,17.0222]
[1719281615515,100.0,132.22,132.16,16.0853]
[1719281615721,100.0,132.22,132.21,6.8073]
[1719281615929,100.0,132.22,132.19,23.828]
[1719281616116,100.0,132.22,132.2,6.8077]
[1719281616726,100.0,132.22,132.21,6.8073]
[1719281617226,100.0,132.22,132.2,6.8077]
[1719281617727,100.0,132.2,132.19,17.0201]
[1719281617929,100.0,132.2,132.18,6.8087]
[1719281618465,100.0,132.18,132.17,6.8094]
[1719281620014,100.0,132.2,132.18,6.8087]
[1719281621209,100.0,132.2,132.16,17.0242]
[1719281621414,100.0,132.2,132.19,6.8083]
[1719281622640,115.4614,132.23,132.18,17.0216]
[1719281622835,100.0,132.25,132.22,6.8064]
[1719281623135,106.1884,132.27,132.2,28.71]
[1719281623340,100.0,132.27,132.2,28.71]
[1719281623635,100.0,132.27,132.24,6.8053]
[1719281625018,100.0,132.27,132.25,6.805]
[1719281625426,100.0,132.27,132.24,23.8195]
[1719281625819,100.0,132.27,132.21,17.018]
[1719281626027,100.0,132.27,132.23,6.8062]
[1719281628513,100.0,132.27,132.24,6.8057]
[1719281628718,100.0,132.24,132.21,17.018]
[1719281628920,100.0,132.24,132.21,23.8252]
[1719281629313,100.0,132.24,132.23,6.8063]
[1719281629519,100.0,132.24,132.21,23.8251]
[1719281629713,100.0,132.24,132.21,17.018]
[1719281630029,100.0,132.24,132.23,6.8063]
[1719281630420,100.0,132.24,132.21,17.018]
[1719281630726,100.0,132.24,132.23,6.8063]
[1719281631641,100.0,132.24,132.22,6.8067]
[1719281632647,100.0,132.24,132.21,23.8251]
[1719281632938,100.0,132.24,132.22,6.8067]
[1719281633456,100.0,132.28,132.23,17.0153]
[1719281633744,100.0,132.28,132.23,23.8212]
[1719281634040,100.0,132.26,132.22,6.8067]
[1719281634237,100.0,132.26,132.23,6.8062]
[1719281634621,100.0,132.24,132.22,17.016]
[1719281634831,100.0,132.24,132.22,23.8228]
[1719281635545,100.0,132.24,132.22,17.016]
[1719281635920,100.0,132.24,132.22,23.8227]
[1719281636844,100.0,132.24,132.2,6.8075]
[1719281637339,100.0,132.26,132.24,6.8057]
[1719281637637,100.0,132.26,132.23,6.8061]
[1719281637840,100.0,132.24,132.23,6.8061]
[1719281638220,100.0,132.24,132.22,23.823]
[1719281639848,100.0,132.24,132.22,17.0164]
[1719281640755,100.0,132.24,132.22,23.8232]
[1719281640969,100.0,132.24,132.23,6.8063]
[1719281641339,100.0,132.24,132.22,17.0164]
[1719281642035,100.0,132.24,132.2,6.8075]
[1719281642352,100.0,132.24,132.21,6.8069]
[1719281642647,100.0,132.26,132.22,6.8065]
[1719281642853,100.0,132.26,132.23,6.8061]
[1719281643051,100.0,132.28,132.24,6.8056]
[1719281643231,100.0,132.28,132.23,17.0153]
[1719281644054,100.0,132.28,132.24,6.8057]
[1719281644354,100.0,132.28,132.23,23.8215]
[1719281644654,100.0,132.28,132.25,17.0128]
[1719281644853,100.0,132.28,132.25,23.8179]
[1719281645055,100.0,132.28,132.27,6.8042]
[1719281645256,108.88586062,132.3,132.27,6.8042]
[1719281645439,100.0,132.3,132.27,6.8042]
[1719281645629,137.59246487,132.33,132.27,6.8042]
[1719281645630,100.0,132.32,132.27,6.8042]
[1719281645837,100.0,132.32,132.28,6.8035]
[1719281646047,100.0,132.32,132.27,17.0099]
[1719281646333,100.0,132.3,132.25,6.8052]
[1719281646539,100.0,132.28,132.24,23.8194]
[1719281647149,100.0,132.26,132.24,23.8194]
[1719281648470,100.0,132.26,132.22,6.8063]
[1719281648652,100.0,132.26,132.21,33.2972]
[1719281649656,100.0,132.26,132.22,6.8064]
[1719281650555,100.0,132.26,132.23,6.8061]
[1719281650753,100.0,132.28,132.25,6.8052]
[1719281651147,100.0,132.31,132.25,17.0126]
[1719281651351,100.0,132.31,132.28,6.8036]
[1719281652153,100.0,132.31,132.27,17.0102]
[1719281652469,100.0,132.33,132.29,23.8105]
[1719281652953,100.0,132.33,132.26,45.7211]
[1719281653139,100.0,132.33,132.28,17.0088]
[1719281653345,100.0,132.31,132.28,17.0088]
[1719281654538,6.8002,132.35,132.28,23.812]
[1719281654539,100.0,132.34,132.28,23.812]
[1719281654857,100.0,132.34,132.29,6.8029]
[1719281655073,106.8007,132.34,132.28,17.0088]
[1719281655743,106.8007,132.34,132.28,23.8121]
[1719281655943,100.0,132.34,132.28,23.8121]
[1719281656165,100.0,132.34,132.28,17.0088]
[1719281656343,100.0,132.32,132.28,17.0088]
[1719281657247,100.0,132.29,132.27,6.8042]
[1719281657469,100.0,132.29,132.26,6.8046]
[1719281657955,100.0,132.29,132.25,17.0125]
[1719281658137,100.0,132.29,132.28,6.8037]
[1719281658542,100.0,132.29,132.27,6.8042]
[1719281659349,100.0,132.29,132.25,23.8173]
[1719281659735,100.0,132.29,132.27,6.8041]
[1719281661849,100.0,132.29,132.25,17.0125]
[1719281662673,100.0,132.33,132.24,16.4315]
[1719281662674,100.0,132.31,132.27,17.01]
[1719281664473,100.0,132.29,132.27,23.8141]
[1719281664657,100.0,132.29,132.27,17.01]
[1719281665460,100.0,132.29,132.25,6.8051]
[1719281665667,100.0,132.29,132.24,33.4451]
[1719281665966,100.0,132.29,132.27,6.8042]
[1719281666769,100.0,132.29,132.26,6.8046]
[1719281667158,100.0,132.29,132.26,17.0113]
[1719281667349,100.0,132.29,132.28,6.8037]
[1719281667864,100.0,132.29,132.26,17.0113]
[1719281668058,100.0,132.29,132.25,6.8047]
[1719281668262,100.0,132.27,132.25,6.8047]
[1719281668469,100.0,132.27,132.26,6.8047]
[1719281668649,100.0,132.27,132.25,6.8051]
[1719281670472,100.0,132.29,132.26,6.8044]
[1719281670669,100.0,132.29,132.27,16.4239]
[1719281670867,100.0,132.29,132.25,17.0126]
[1719281670868,100.0,132.29,132.26,6.8046]
[1719281671049,100.0,132.29,132.27,6.8042]
[1719281671248,100.0,132.29,132.26,16.4243]
[1719281671468,100.0,132.29,132.27,16.4242]
[1719281671648,100.0,132.29,132.27,9.62]
[1719281672050,100.0,132.29,132.26,6.8046]
[1719281672267,100.0,132.29,132.27,9.62]
[1719281672448,100.0,132.29,132.26,6.8046]
[1719281672649,100.0,132.29,132.27,9.62]
[1719281673071,100.0,132.31,132.27,17.0102]
[1719281673470,100.0,132.31,132.29,9.62]
[1719281673845,100.0,132.31,132.27,23.814]
[1719281674077,100.0,132.29,132.27,26.6302]
[1719281674262,100.0,132.29,132.27,9.62]
[1719281674465,100.0,132.27,132.24,23.8198]
[1719281674662,100.0,132.27,132.25,16.4252]
[1719281675258,100.0,132.27,132.26,9.62]
[1719281677081,100.0,132.27,132.25,6.8052]
[1719281677258,100.0,132.27,132.26,9.62]
[1719281677458,100.0,132.27,132.26,16.4247]
[1719281677876,9.62,132.3,132.26,6.8047]
[1719281678281,100.0,132.28,132.26,6.8047]
[1719281678753,9.62,132.3,132.27,6.8042]
[1719281678754,100.0,132.3,132.27,6.8042]
[1719281679579,100.0,132.3,132.26,23.8162]
[1719281680177,109.62,132.3,132.26,17.0116]
[1719281680384,100.0,132.28,132.26,17.0116]
[1719281683286,100.0,132.28,132.26,26.6316]
[1719281683577,100.0,132.28,132.26,33.4362]
[1719281683781,100.0,132.28,132.26,23.8162]
[1719281685171,100.0,132.28,132.26,17.0116]
[1719281685366,100.0,132.28,132.26,23.8163]
[1719281685777,100.0,132.28,132.26,17.0116]
[1719281685998,100.0,132.28,132.26,23.8163]
[1719281686278,100.0,132.28,132.26,17.0116]
[1719281686486,100.0,132.28,132.23,6.1203]
[1719281686487,100.0,132.28,132.23,23.135]
[1719281686668,100.0,132.28,132.25,9.62]
[1719281687182,100.0,132.28,132.25,16.4249]
[1719281689390,100.0,132.28,132.25,6.8049]
[1719281689584,109.62,132.3,132.23,17.0147]
[1719281689585,100.0,132.26,132.23,23.8208]
[1719281691562,100.0,132.24,132.23,17.0147]
[1719281691768,100.0,132.24,132.21,6.8069]
[1719281691980,100.0,132.24,132.21,16.4269]
[1719281692486,100.0,132.24,132.22,6.8068]
[1719281692988,100.0,132.22,132.17,17.0228]
[1719281693170,100.0,132.22,132.17,26.6428]
[1719281693171,109.62,132.22,132.17,26.6428]
[1719281693366,100.0,132.2,132.17,23.8321]
[1719281694266,100.0,132.18,132.17,23.8321]
[1719281694467,100.0,132.18,132.16,6.8098]
[1719281694671,100.0,132.18,132.15,6.8103]
[1719281695294,100.0,132.18,132.15,6.8102]
[1719281695598,100.0,132.18,132.14,17.0268]
[1719281695774,100.0,132.18,132.14,26.6468]
[1719281696267,100.0,132.18,132.15,6.81]
[1719281697070,100.0,132.16,132.15,6.81]
[1719281697389,100.0,132.16,132.14,17.0268]
[1719281697607,100.0,132.16,132.14,23.8376]
[1719281698392,100.0,132.18,132.12,6.8117]
[1719281698393,100.0,132.14,132.12,6.8117]
[1719281698773,100.0,132.14,132.12,5.8117]
[1719281699295,100.0,132.14,132.08,22.9437]
[1719281699481,100.0,132.12,132.08,17.0344]
[1719281699677,100.0,132.12,132.1,9.62]
[1719281699871,100.0,132.12,132.11,6.8125]
[1719281700267,100.0,132.12,132.1,23.8449]
[1719281701371,100.0,132.12,132.1,17.032]
[1719281703075,100.0,132.12,132.1,23.8448]
[1719281703488,100.0,132.1,132.09,6.8133]
[1719281707983,115.6473,132.14,132.09,17.0334]
[1719281708181,100.0,132.12,132.09,17.0334]
[1719281708382,100.0,132.1,132.09,23.8468]
[1719281708582,100.0,132.1,132.09,17.0334]
[1719281708999,115.6473,132.14,132.06,17.037]
[1719281709000,100.0,132.08,132.06,17.037]
[1719281709182,100.0,132.08,132.03,17.0409]
[1719281709494,100.0,132.08,132.05,6.8155]
[1719281710180,100.0,132.06,132.04,6.8159]
[1719281713497,100.0,132.04,132.03,6.8166]
[1719281714200,100.0,132.04,132.02,17.0423]
[1719281714381,100.0,132.04,132.02,23.8593]
[1719281715501,100.0,132.02,132.0,6.818]
[1719281716405,100.0,132.02,131.99,17.0462]
[1719281717408,100.0,132.02,132.0,6.818]
[1719281718017,100.0,132.02,131.96,51.1958032]
[1719281718018,100.0,132.0,131.96,51.1958032]
[1719281718233,100.0,131.98,131.96,17.0950032]
[1719281719090,100.0,132.0,131.96,0.0449032]
[1719281719286,100.0,132.0,131.97,6.3196]
[1719281720002,100.0,132.0,131.96,0.0449032]
[1719281720003,100.0,132.02,131.96,0.0449032]
[1719281720204,100.0,132.02,131.96,17.0953032]
[1719281720406,6.8165,132.04,131.96,17.0953032]
[1719281720407,100.0,132.0,131.98,6.8188]
[1719281720700,100.0,131.98,131.96,17.0953032]
[1719281721204,100.0,131.98,131.96,23.9154032]
[1719281721399,100.0,131.98,131.97,6.8197]
[1719281721608,100.0,131.98,131.96,17.0953032]
[1719281721786,100.0,131.98,131.96,23.9151032]
[1719281722110,100.0,131.98,131.96,23.9154032]
[1719281722807,100.0,132.02,131.98,17.047]
[1719281723189,100.0,132.0,131.99,6.8186]
[1719281723697,100.0,132.0,131.98,17.047]
[1719281723698,100.0,132.0,131.98,23.866]
[1719281723903,100.0,131.98,131.97,6.8196]
[1719281724408,100.0,131.98,131.96,0.0449032]
[1719281724784,100.0,131.98,131.96,6.8650032]
[1719281726110,100.0,131.98,131.96,0.0449032]
[1719281727307,100.0,131.98,131.96,6.8651032]
[1719281727509,100.0,131.98,131.97,6.8197]
[1719281727903,100.0,131.98,131.96,6.8650032]
[1719281728517,100.0,131.98,131.97,6.8197]
[1719281728722,100.0,131.98,131.96,6.8649032]
[1719281729095,100.0,131.98,131.97,6.8197]
[1719281729291,100.0,132.02,131.97,17.0488]
[1719281729598,22.4084,132.05,131.99,17.0458]
[1719281729906,100.0,132.04,131.99,17.0458]
[1719281730597,100.0,132.01,131.99,33.5243]
[1719281731002,100.0,132.01,132.0,16.4781]
[1719281732112,100.0,132.01,132.0,6.8181]